Cogmind - Beta 17 *** ADVENTURER MODE // 2026.07.13 @ 20:29:40 Player: CyberVixen Result: Destroyed by Y-45 Defender with Heavy Assault Rifle Performance ------------- Evolutions (1) 500 Regions Visited (2) 400 Robots Destroyed (31) 155 Value Destroyed (830) 830 Prototype IDs (2) 40 Alien Tech Used (0) 0 Bonus (0) 0 TOTAL SCORE: 1925 Bonus ------- None Cogmind --------- Core Integrity 0/400 Matter 290/300 Energy 60/100 System Corruption 3% Temperature Cool (0) Movement Core (150) Ox2 Location -9/Materials Parts ------- > --- POWER (1) -------- (None) > --- PROPULSION (2) --- (None) > --- UTILITY (3) ------ Small Storage Unit Signal Interpreter > --- WEAPON (3) ------- Heavy EM Pulse Gun > --- INVENTORY (8) ---- Improved Targeting Computer Hardened Light Armor Plating Hardened Light Armor Plating Peak State ------------ > --- POWER ------------ Light Ion Engine > --- PROPULSION ------- Light Treads Light Treads > --- UTILITY ---------- Small Storage Unit Sensor Array Signal Interpreter > --- WEAPON ----------- Light Assault Rifle Improved Light Cannon Plasma Cutter > --- INVENTORY -------- Light Ion Engine Light Armor Plating Small Laser Mining Laser [Rating: 11] Favorites ----------- Power Light Ion Engine Engine Light Ion Engine Propulsion Light Treads Treads Light Treads Hover Unit Backup Propulsion I Utility Small Storage Unit Device Sensor Array Storage Small Storage Unit Processor Signal Interpreter Protection Hardened Light Armor Plating Weapon Light Assault Rifle Energy Gun EM Pulse Gun Ballistic Gun Light Assault Rifle Ballistic Cannon Improved Light Cannon Special Weapon Plasma Cutter Build | -11 -10 -9 ------- Run | Yrd Mat Mat Slots Evolved 2 | . . 2 Power . | . . . Propulsion . | . . . Utility 1 | . . 1 Weapon 1 | . . 1 Parts Attached 16 | 8 1 7 Power 2 | 1 . 1 Engine 2 | 1 . 1 Core . | . . . Reactor . | . . . Propulsion 2 | 2 . . Treads 2 | 2 . . Leg . | . . . Wheel . | . . . Hover . | . . . Flight . | . . . Utility 5 | 2 1 2 Device 2 | 1 . 1 Storage 1 | 1 . . Processor 1 | . 1 . Hackware . | . . . Protection 1 | . . 1 Artifact . | . . . Weapon 7 | 3 . 4 Energy Gun 3 | 2 . 1 Energy Cannon . | . . . Ballistic Gun 1 | 1 . . Ballistic Cannon 1 | . . 1 Launcher . | . . . Special Weapon 2 | . . 2 Impact Weapon . | . . . Slashing Weapon . | . . . Piercing Weapon . | . . . Special Melee Weapon . | . . . Unidentified Prototypes . | . . . Parts Lost 9 | . . 9 Power 1 | . . 1 Propulsion 2 | . . 2 Utility 2 | . . 2 Weapon 4 | . . 4 Highest Loss Streak 7 | . . 7 To Critical Strikes . | . . . Average Backups 4 | 2 4 4 Power . | . 1 . Propulsion . | . . . Utility 1 | . . 2 Weapon 1 | 1 2 1 Tool/Special . | . . . Unused Backups 4 | . . 4 Power . | . . . Propulsion . | . . . Utility 4 | . . 4 Weapon . | . . . Tool/Special . | . . . Average Slot Usage (%) 87 | . 100 81 Engine 10 | . 14 9 Treads 20 | . 28 17 Device 6 | . 1 9 Storage 11 | . 14 11 Processor 11 | . 12 11 Energy Gun 5 | . 14 1 Ballistic Gun 10 | . 14 9 Ballistic Cannon 5 | . . 8 Special Weapon 2 | . . 3 Peak Build Rating 11 | 9 9 11 Average Rating 7 | 6 7 8 On Entrance 5 | . 9 7 Avg Prop Armor Cover (%) 16 | . . 16 Naked Turns . | . . . Heaviest Build 15 | 12 12 15 Greatest Support 40 | 40 40 40 Greatest Overweight (x) 3 | . . 3 Average Overweight (x) . | . . . Largest Inventory Capacity 8 | 8 8 8 Average Capacity 7 | 7 8 8 Most Carried 7 | 5 5 7 Average Carried 4 | 2 4 4 Final Capacity 8 | 8 8 8 Final Carried 5 | 3 5 3 Class Distribution -------------------- 81% | Mutant 18% | Skirmisher Dominant Class ---------------- Mutant | -10/Materials Mutant | -9/Materials Resources | -11 -10 -9 ----------- Run | Yrd Mat Mat Matter Collected 554 | 303 26 225 Remotely . | . . . Salvage Created 958 | 204 353 401 Parts 66 | 13 23 30 Haulers Intercepted . | . . . Recyclers Shooed 1 | 1 . . Parts Field Recycled . | . . . Retrieved Matter . | . . . Parts Self-Destructed . | . . . Prevented . | . . . Parts Restored . | . . . Kills | -11 -10 -9 ------- Run | Yrd Mat Mat Combat Hostiles Destroyed 22 | . 8 14 Melee 1 | . . 1 Guns 11 | . 7 4 Cannons 9 | . . 9 AOE 1 | . 1 . Classes Destroyed 8 | 3 1 4 Worker 3 | 2 1 . Builder 1 | . . 1 Tunneler 3 | 3 . . Recycler 1 | 1 . . Watcher 1 | . . 1 Swarmer 3 | . . 3 Grunt 18 | . 8 10 Sentry 1 | . . 1 Best Kill Streak 3 | 2 3 3 Combat Bots Only 3 | . 3 3 Max Kills in Single Turn 3 | 1 3 2 Gunslinging . | . . . Exploded 1 | . 1 . Melee 1 | . . 1 Uniques/NPCs Destroyed . | . . . Combat | -11 -10 -9 -------- Run | Yrd Mat Mat Hostile Shots Fired 213 | . 31 182 Missed 56 | . 7 49 Hits 157 | . 24 133 Projectile 157 | . 24 133 Critical Strikes 5 | . . 5 Damage Taken 1611 | . 232 1379 Core 466 | . 56 410 Absorbed by Shields . | . . . Ignored by Resistances 469 | . 72 397 Regen/Repaired (Parts) 60 | . . 60 Core Remaining (%) 88 | 100 77 . Volleys Fired 77 | 13 16 48 Largest 3 | 2 2 3 Hottest 120 | 60 60 120 Shots Fired 156 | 26 32 98 Gun 104 | 26 32 46 Cannon 35 | . . 35 Launcher . | . . . Special 17 | . . 17 Kinetic 105 | 13 16 76 Thermal 18 | . . 18 Explosive . | . . . Electromagnetic 33 | 13 16 4 Robot Hit Streak 34 | 17 27 34 Robot Miss Streak 1 | 1 1 1 Penetration Max . | . . . Secondary Targets . | . . . Shots Hit Robots 128 | 21 26 81 Core Hits 68 | 9 14 45 Critical Kills 1 | 1 . . Critical Parts Destroyed . | . . . Critical Strikes 7 | 2 2 3 Destroy 1 | 1 . . Blast 2 | . . 2 Corrupt 3 | 1 2 . Sever 1 | . . 1 Melee Attacks . | . . . Impact . | . . . Slashing . | . . . Piercing . | . . . Sneak Attacks . | . . . Combat Hostiles . | . . . Follow-up Attacks . | . . . Damage Inflicted 1849 | 249 421 1179 Guns 904 | 249 296 359 Cannons 626 | . . 626 Explosions 125 | . 125 . Melee . | . . . Ramming 33 | . . 33 Kinetic 1090 | 72 87 931 Thermal 297 | . 125 172 Explosive . | . . . Electromagnetic 429 | 177 209 43 Impact . | . . . Slashing . | . . . Piercing . | . . . Highest Corruption 3 | . . 3 Average Corruption 2 | . . 2 Corruption Purged . | . . . Corruption Blocked . | . . . Effects 1 | . . 1 Matter Fused 1 | . . 1 Overload Shots . | . . . Overflow Damage 11 | . . 11 Projectiles 11 | . . 11 Explosions . | . . . Melee . | . . . Knockbacks 9 | . . 9 Impact . | . . . Kinetic 8 | . . 8 Secondary 1 | . . 1 Self-Inflicted Damage 40 | . 28 12 Shots 1 | . 1 . Rammed 23 | . . 23 Targets Rammed 23 | . . 23 Kicked . | . . . Crushed . | . . . Highest Temperature 94 | 40 94 89 Average Temperature 27 | 23 35 24 Received Heat Transfer 1083 | . 147 936 Siege Activations . | . . . Martial Activations . | . . . Shielding Activations . | . . . Robots Disrupted . | . . . Combat Hostiles . | . . . Robots Corrupted . | . . . Combat Hostiles . | . . . Parts Fried 1 | 1 . . Impact Corruptions . | . . . Robots Melted . | . . . Combat Hostiles . | . . . Parts Melted . | . . . Heat Transferred 621 | . 150 471 Parts Sabotaged . | . . . Parts Stolen . | . . . Parts Stripped . | . . . Power Chain Reactions 1 | . 1 . Alert | -11 -10 -9 ------- Run | Yrd Mat Mat Maximum Alert Level . | . . . Low Security (%) 100 | 100 100 100 Level 1 . | . . . Level 2 . | . . . Level 3 . | . . . Level 4 . | . . . Level 5 . | . . . High Security . | . . . Max Security . | . . . Peak Influence 79 | 5 76 79 Initial 19 | . . 19 Average 30 | . 37 36 Influence Increases 676 | 30 216 430 Destroy 0b10 Robot/C 440 | . 160 280 Destroy 0b10 Robot/NC 45 | 30 5 10 Destroy Leader 92 | . 30 62 Successful Hack 10 | . . 10 Disable Machine 36 | . . 36 Destroy Structure 8 | . 6 2 Lose Combat Pursuer 45 | . 15 30 Influence Decreases 661 | 30 160 471 Entered New Map 37 | . . 37 Time Decay 548 | 30 160 358 Lost Part 76 | . . 76 Squads Dispatched 3 | . 2 1 Investigation 2 | . 2 . Extermination . | . . . Reinforcement 1 | . . 1 Assault . | . . . Garrison . | . . . Intercept . | . . . Searches Triggered . | . . . Construction Impeded . | . . . Haulers Reinforced . | . . . Active Scanning Responses . | . . . Cargo Convoy Interrupts . | . . . Stealth | -11 -10 -9 --------- Run | Yrd Mat Mat Distress Signals 4 | . 1 3 Communications Jammed . | . . . Distress Signals . | . . . Times Spotted 39 | . 11 28 Peak Tracking Total 7 | . 4 7 Tactical Retreats 3 | . 1 2 Traps | -11 -10 -9 ------- Run | Yrd Mat Mat Traps Triggered 1 | . 1 . Indirectly . | . . . Trap Hack Attempts . | . . . Triggered . | . . . Disarmed . | . . . Reprogrammed . | . . . Reused . | . . . Traps Extracted . | . . . Installed . | . . . Triggered . | . . . Machines | -11 -10 -9 ---------- Run | Yrd Mat Mat Machines Disabled 4 | . . 4 Max in Single Turn 1 | . . 1 Machines Repaired . | . . . Machines Dismantled 4 | . . 4 Machines Sabotaged . | . . . Overloaded Fab Kills . | . . . Hacking | -11 -10 -9 --------- Run | Yrd Mat Mat Machines Accessed 3 | . 1 2 Terminals 2 | . 1 1 Fabricators . | . . . Repair Stations 1 | . . 1 Recycling Units . | . . . Scanalyzers . | . . . Garrison Access . | . . . Total Hacks 13 | . 3 10 Successful 9 | . 1 8 Failed 4 | . 2 2 Catastrophic . | . . . Database Lockouts . | . . . Manual . | . . . Terminals 7 | . 3 4 Fabricators . | . . . Repair Stations 6 | . . 6 Recycling Units . | . . . Scanalyzers . | . . . Garrison Access . | . . . Terminal Hacks 3 | . 1 2 Prototype ID Bank 1 | . . 1 Branch Access Points 1 | . . 1 Recall Reinforcements 1 | . 1 . Fabricator Hacks . | . . . Repair Station Hacks 6 | . . 6 Scan Component 3 | . . 3 Repair 2 | . . 2 Refit 1 | . . 1 Recycling Unit Hacks . | . . . Scanalyzer . | . . . Garrison Access Hacks . | . . . Unauthorized Hacks . | . . . Terminals . | . . . Fabricators . | . . . Repair Stations . | . . . Recycling Units . | . . . Scanalyzers . | . . . Garrison Access . | . . . Data Cores Recovered . | . . . Used . | . . . Hacking Detections 2 | . 1 1 Full Trace Events 1 | . 1 . Feedback Events . | . . . Feedback Blocked . | . . . Robot Schematics Acquired . | . . . Robots Built . | . . . Authchips . | . . . Time . | . . . Total Robot Build Rating . | . . . Part Schematics Acquired . | . . . Parts Built . | . . . Authchips . | . . . Time . | . . . Total Part Build Rating . | . . . Part Studies Acquired . | . . . Parts Repaired 2 | . . 2 Time 52 | . . 52 Parts Recycled . | . . . Recycled Matter . | . . . Retrieved Matter . | . . . Retrieved Components . | . . . Parts Scanalyzed . | . . . Part Schematics Acquired . | . . . Parts Damaged . | . . . Bothacking | -11 -10 -9 ------------ Run | Yrd Mat Mat Used RIF Installer . | . . . Robots Hacked . | . . . Non-combat . | . . . Combat . | . . . Robot Hacks Applied . | . . . Relay Couplers Released . | . . . Fabnet Peak Effective % . | . . . Robots Rewired . | . . . Allies Hacked . | . . . Hacks Repelled . | . . . Allies | -11 -10 -9 -------- Run | Yrd Mat Mat Total Allies . | . . . Largest Group . | . . . Highest-Rated Group . | . . . Highest-Rated Ally . | . . . Total Orders . | . . . Ally Attacks . | . . . Total Damage . | . . . Kills . | . . . Allies Corrupted . | . . . Allies Melted . | . . . Intel | -11 -10 -9 ------- Run | Yrd Mat Mat Active Infowar (turns) 906 | 172 36 698 Sensors 698 | . . 698 Terrain 208 | 172 36 . Robot Analysis Total . | . . . Derelict Logs Recovered . | . . . Drone Launches . | . . . Drone Recoveries . | . . . Exploration | -11 -10 -9 ------------- Run | Yrd Mat Mat Turns Passed 1463 | 277 362 824 Spaces Moved 525 | 128 146 251 Core 57 | 12 . 45 Treads 464 | 116 146 202 Legs . | . . . Wheels . | . . . Hover 4 | . . 4 Flight . | . . . Fastest Speed 50 | 50 160 100 Average Speed 154 | 149 160 153 Slowest Speed 200 | 160 160 200 Overloaded Moves . | . . . Propulsion Burnouts . | . . . Robots Hopped . | . . . Potential Cave-ins . | . . . Cave-ins Triggered . | . . . Exploration Rate (%) 16 | 5 21 22 Regions Visited 2 Branch Regions . Pre-discovered Areas . | . . . Known Exits Taken 1 | . 1 . Unknown Exits Taken 1 | 1 . . Scrap Searched . | . . . Spaces Dug . | . . . Terrain Destroyed 6 | . 5 1 Melee . | . . . Projectile 1 | . . 1 AOE 5 | . 5 . Terrain Rammed . | . . . Walls Destroyed . | . . . Machines Disabled . | . . . Actions | -11 -10 -9 --------- Run | Yrd Mat Mat Total 983 | 190 246 547 Wait 296 | 31 81 184 Move 523 | 127 145 251 Hop . | . . . Pick Up 16 | 8 2 6 Fast Attach 7 | 3 1 3 Attach 12 | 6 . 6 Detach 3 | 1 . 2 Swap 2 | . . 2 Drop 7 | 1 1 5 Fire 77 | 13 16 48 Melee . | . . . Ram 21 | . . 21 Kick . | . . . Crush 2 | . . 2 Escape Stasis . | . . . Rewire . | . . . Trap . | . . . Miscellaneous 17 | . . 17 Route ------- -11/Scrapyard -10/Materials -9/Materials (discovered 2 exits: *Min x2) History --------- Turn | Location | Event 10 | -11/Scrapyard | Discovered new exit (range 15) 278 | -11/Scrapyard | Entered Materials 337 | -10/Materials | Build established: Mutant 360 | -10/Materials | Discovered new exit (range 16) 639 | -10/Materials | Identified exit to Materials 640 | -10/Materials | Entered another Materials area 640 | -9/Materials | Evolved 2 slots: Utility x1, Weapon x1 671 | -9/Materials | Repaired EM Pulse Gun 697 | -9/Materials | Repaired Lgt. Treads 941 | -9/Materials | Discovered new exit (range 7) 978 | -9/Materials | Identified exit to Mines 1381 | -9/Materials | Core integrity fell below 50% 1391 | -9/Materials | Lost 7 parts (1p1n1u4w) 1399 | -9/Materials | Core integrity fell below 20% 1464 | -9/Materials | Destroyed by Y-45 Defender with Heavy Assault Rifle Last Messages --------------- Slammed into Y-45 Defender. R-06 Scavenger collects Aluminum Leg. Acquired 4 matter. System corrupted: Matter fused (-9). Slammed into Y-45 Defender. Critical hit (Burn: +37). Slammed into Y-45 Defender. M-13 Machinist repairs Y-45 Defender. Slammed into Y-45 Defender. Destabilizing: System corrupted (+2). Slammed into Y-45 Defender. Destabilizing: Core damaged (-20). Slammed into G-34 Mercenary. Hrd. Light Armor Plating destroyed. Slammed into G-34 Mercenary. G-34 Mercenary suffers critical hit (Burn). Slammed into K-01 Serf. Slammed into M-13 Machinist. Acquired Hvy. EM Pulse Gun. G-34 Mercenary destroyed. Map ----- +----------------------------------------------------+ | ??????????????????????????????????????????? | | ??????????????????????????????????????????? | | ??????????????????????????????????????????? | | ??????????????????????????????????????????? | | ??????????????????????????????????????????? | | ??????????????????????????????????????????? | | ??????????????????????????????????????????? | | ######????????????????????????????????????? | | #???????? ?????????????????????????? | | """ #???????+ #????????????????????????? | | """ #???????# #????????????????????????? | | """ #???????# #????????????????????????? | | #???###?# #????????????????????????? | | """ #???? ?# #????????????????????????? | | """ #???? # #????????????????????????? | | """ #?????" # #????????????????????????? | | #?????? / #??????????######????????? | | #######??????# ##??????#?##!!!!##???????? | | #??????# ## ??? #?#! !#???????? | | #?????## ## ? ???# #???????? | | #?????# ###+###### #?????????? | | """ #?????# ! ! #?????????? | | %"" #????## #?????????? | | %" ####### [! #?????????? | | %% ########Y######?????????? | | ######%%%####???# @%= #?????????? | | ###+####???# %%#??????# """#?????????? | | # #???# % #??????# R"#?????????? | | # " #???# #??????# """#?????????? | | # #???# #??????# """ #?????????? | | # " #???# #??????# """ #?????????? | | # #???# #??????# """ #?????????? | | # ! #???# #??????# #?????????? | | ########???# ##################?????????? | | ############% # #???????????????????? | | #%%""" #???????????????????? | | % % #% """ #???????????????????? | | !! %%#%%""" #???????????????????? | | !!! %%/%% #???????????????????? | | ! %#% #???????????????????? | | ########???????????????????? | | #?????????????????????? | | /!! #?????????????????????? | | /!! ### +?????????????????????? | | !!! % % #??? #?????????????????????? | | #####+####????#?????????????????????? | | #?# [T #??????????????????????????? | | "" #?#% #??????????????????????????? | | "" #?# " #??????????????????????????? | | "" ?# """ #??????????????????????????? | +----------------------------------------------------+ Best States ------------- Heat Dissipation 28 Energy Generation 10 Energy Capacity 125 Matter Stores 300 Matter Capacity 300 Sight Range 16 Robot Scan Range 14 Terrain Scan Range 16 Terrain Scan Density 10 Armor Coverage 150 Resistance: KI 20 Resistance: TH 20 Resistance: EX 20 Resistance: EM 20 Resistance: I 20 Resistance: S 20 Resistance: P 20 Evasion (%) 50 Recoil Reduction 2 Offensive Hacking 10 Item Schematics ----------------- None Robot Schematics ------------------ None Fabricated ------------ Nothing Repaired ---------- Lgt. Treads | 57% | -9/Materials Studied --------- None Alien Tech Used ----------------- None Achievements -------------- Bumper Bots Fist Fight Challenges ------------ None Game ------ Seed IonicFissionCloak Manual? 0 Play Time 00:16:58 Cumulative 4.1 hours Start 2026.07.13 @ 20:16:40 End 2026.07.13 @ 20:29:40 Sessions 1 Manual Loads 0 Difficulty Adventurer Special Mode None Game No. 6 Rogue 0 Adventurer 6 Explorer 0 Win Type - Total 0 Types 0/0/0/0/0/0/0/0/0/0 Lore% 10 Gallery% 11 Achievement% 12 Wizard Run 0 Options --------- Layout 1 ASCII 0 Keyboard 0 Movement Mouse Keybinds 0 Fullscreen 1 Font 32/Cog Map View 77x35 Zoom Use 0% Tactical HUD 0 Map Filters NONE Filters NONE Steam 1 RUN: 5478436c-8950-45e1-9da1-07b1ca06db7a